fUSD/lending_fUSD_20240212
["ID","MTS","AMOUNT","RATE_DAILY","PERIOD"]
[313787849,1707724281821,-890.74,0.00024209,2]
[313787850,1707724281830,-815.41,0.00024209,2]
[313787851,1707724281840,-583.58,0.00024209,2]
[313787852,1707724281850,-500.0,0.00024209,2]
[313787853,1707724281860,-937.88,0.00024209,2]
[313787854,1707724281869,-713.39,0.00024209,2]
[313787855,1707724281880,-677.31,0.00024209,2]
[313787856,1707724281890,-500.0,0.00024209,2]
[313787857,1707724281900,-719.29,0.00024209,2]
[313787858,1707724281910,-1300.69,0.00024209,2]
[313787859,1707724281919,-1183.66,0.00024209,2]
[313787860,1707724281929,-587.65,0.00024209,2]
[313787861,1707724281939,-888.66,0.00024209,2]
[313787862,1707724281949,-887.34,0.00024209,2]
[313787863,1707724281958,-1482.85,0.00024209,2]
[313787864,1707724281968,-672.72,0.00024209,2]
[313787865,1707724281978,-507.87,0.00024209,2]
[313787866,1707724281988,-783.44,0.00024209,2]
[313787867,1707724281998,-504.77,0.00024209,2]
[313787868,1707724282008,-500.0,0.00024209,2]
[313787869,1707724282018,-751.88,0.00024209,2]
[313787870,1707724282029,-500.0,0.00024209,2]
[313787871,1707724282039,-500.0,0.00024209,2]
[313787872,1707724282049,-500.0,0.00024209,2]
[313787873,1707724282060,-1243.18,0.00024209,2]
[313787874,1707724282070,-500.0,0.00024209,2]
[313787875,1707724282080,-974.3,0.00024209,2]
[313787876,1707724282090,-500.0,0.00024209,2]
[313787877,1707724282099,-7827.18,0.00024209,2]
[313787878,1707724282109,-500.0,0.00024209,2]
[313787879,1707724282120,-500.0,0.00024209,2]
[313787880,1707724282130,-967.31,0.00024209,2]
[313787881,1707724282139,-2173.97,0.00024209,2]
[313787882,1707724282149,-500.0,0.00024209,2]
[313787883,1707724282159,-1551.42,0.00024209,2]
[313787884,1707724282169,-1390.31,0.00024209,2]
[313787885,1707724282180,-537.36,0.00024209,2]
[313787886,1707724282190,-500.0,0.00024209,2]
[313787887,1707724282200,-2945.14,0.00024209,2]
[313787888,1707724282213,-974.61,0.00024209,2]
[313787889,1707724282223,-500.0,0.00024209,2]
[313787890,1707724282232,-806.3,0.00024209,2]
[313787891,1707724282242,-1019.27,0.00024209,2]
[313787892,1707724282252,-570.23,0.00024209,2]
[313787893,1707724282262,-500.0,0.00024209,2]
[313787894,1707724282272,-922.68,0.00024209,2]
[313787895,1707724282281,-587.74,0.00024209,2]
[313787896,1707724282290,-1002.52,0.00024209,2]
[313787897,1707724282300,-1154.55,0.00024209,2]
[313787898,1707724282309,-1257.42,0.00024209,2]
[313787899,1707724282319,-880.38,0.00024209,2]
[313787900,1707724282328,-719.41,0.00024209,2]
[313787901,1707724282338,-744.24,0.00024209,2]
[313787902,1707724282348,-500.0,0.00024209,2]
[313787903,1707724282358,-506.58,0.00024209,2]
[313787904,1707724282367,-655.13,0.00024209,2]
[313787905,1707724282377,-1365.54,0.00024209,2]
[313787906,1707724282387,-500.0,0.00024209,2]
[313787907,1707724282397,-1350.62,0.00024209,2]
[313787908,1707724282407,-772.77,0.00024209,2]
[313787909,1707724282417,-500.0,0.00024209,2]
[313787910,1707724282429,-2935.99,0.00024209,2]
[313787911,1707724282439,-500.0,0.00024209,2]
[313787912,1707724282449,-500.0,0.00024209,2]
[313787913,1707724282459,-1330.37,0.00024209,2]
[313787914,1707724282470,-1466.7,0.00024209,2]
[313787915,1707724282481,-500.0,0.00024209,2]
[313787916,1707724282491,-992.91,0.00024209,2]
[313787917,1707724282502,-3717.73,0.00024209,2]
[313787918,1707724282513,-383.63819079,0.00024209,2]
[313787919,1707724282524,-500.0,0.00024209,2]
[313787920,1707724282534,-3566.79,0.00024209,2]
[313787921,1707724282543,-2751.21,0.00024209,2]
[313787922,1707724282553,-603.29,0.00024209,2]
[313787923,1707724282563,-498.07351747,0.00024209,2]
[313787924,1707724282573,-1093.06,0.00024209,2]
[313787925,1707724282582,-2597.39,0.00024209,2]
[313787926,1707724282592,-1658.55,0.00024209,2]
[313787927,1707724282602,-754.43,0.00024209,2]
[313787928,1707724282612,-641.02,0.00024209,2]
[313787929,1707724282622,-1509.11,0.00024209,2]
[313787930,1707724282631,-933.4,0.00024209,2]
[313787931,1707724282641,-500.0,0.00024209,2]
[313787932,1707724282652,-1039.67,0.00024209,2]
[313787933,1707724282662,-581.28,0.00024209,2]
[313787934,1707724282673,-558.4,0.00024209,2]
[313787935,1707724282683,-2115.36,0.00024209,2]
[313787936,1707724282693,-1608.32,0.00024209,2]
[313787937,1707724282703,-535.09,0.00024209,2]
[313787938,1707724282713,-500.0,0.00024209,2]
[313787939,1707724282723,-1871.04,0.00024209,2]
[313787940,1707724282733,-13505.82,0.00024209,2]
[313787941,1707724282744,-500.0,0.00024209,2]
[313787942,1707724282754,-500.0,0.00024209,2]
[313787943,1707724282763,-521.2,0.00024209,2]
[313787944,1707724282773,-1098.36,0.00024209,2]
[313787945,1707724282783,-264.55473042,0.00024209,2]
[313787946,1707724282792,-2160.67,0.00024209,2]
[313787947,1707724282802,-1598.78,0.00024209,2]
[313787948,1707724282812,-500.0,0.00024209,2]
[313787949,1707724282823,-500.0,0.00024209,2]
[313787950,1707724282833,-500.0,0.00024209,2]
[313787951,1707724282843,-728.66,0.00024209,2]
[313787952,1707724282853,-3742.33,0.00024209,2]
[313787953,1707724282862,-500.0,0.00024209,2]
[313787954,1707724282873,-708.87,0.00024209,2]
[313787955,1707724282883,-500.0,0.00024209,2]
[313787956,1707724282892,-500.0,0.00024209,2]
[313787957,1707724282902,-500.0,0.00024209,2]
[313787958,1707724282912,-612.51,0.00024209,2]
[313787959,1707724282921,-500.0,0.00024211,2]
[313787960,1707724282931,-500.0,0.00024211,2]
[313787961,1707724282941,-500.0,0.00024211,2]
[313787962,1707724282950,-500.0,0.00024211,2]
[313787963,1707724282960,-500.0,0.00024211,2]
[313787964,1707724282970,-500.0,0.00024211,2]
[313787965,1707724282980,-172.48108856,0.00024211,2]
[313787966,1707724282990,-500.0,0.00024211,2]
[313787967,1707724282999,-500.0,0.00024211,2]
[313787968,1707724283021,-500.0,0.00024211,2]
[313787969,1707724283033,-621.4597534,0.00024211,2]
[313787970,1707724283279,-501.31,0.00024211,2]
[313787971,1707724283289,-500.0,0.00024211,2]
[313787972,1707724283298,-500.0,0.00024211,2]
[313787973,1707724283307,-500.0,0.00024211,2]
[313787974,1707724283316,-500.0,0.00024211,2]
[313787975,1707724283326,-500.0,0.00024211,2]
[313787976,1707724283335,-500.0,0.00024211,2]
[313787977,1707724283344,-1225.76,0.00024211,2]
[313787978,1707724283354,-500.0,0.00024211,2]
[313787979,1707724283363,-503.01,0.00024211,2]
[313787980,1707724283373,-501.14,0.00024211,2]
[313787981,1707724283384,-500.0,0.00024211,2]
[313787982,1707724283394,-500.0,0.00024211,2]
[313787983,1707724283403,-868.66,0.00024211,2]
[313787984,1707724283414,-500.0,0.00024211,2]
[313787985,1707724283425,-500.0,0.00024211,2]
[313787986,1707724283435,-500.0,0.00024211,2]
[313787987,1707724283445,-1657.54,0.00024211,2]
[313787988,1707724283455,-500.0,0.00024211,2]
[313787989,1707724283466,-500.0,0.00024211,2]
[313787990,1707724283477,-500.0,0.00024211,2]
[313787991,1707724283486,-937.0,0.00024211,2]
[313787992,1707724283495,-500.0,0.00024211,2]
[313787993,1707724283505,-500.0,0.00024211,2]
[313787994,1707724283516,-836.61,0.00024211,2]
[313787995,1707724283526,-160.30836618,0.00024211,2]
[313787996,1707724283536,-789.02,0.00024211,2]
[313787997,1707724283546,-500.0,0.00024211,2]
[313787998,1707724283555,-500.0,0.00024211,2]
[313787999,1707724283565,-500.0,0.00024211,2]
[313788000,1707724283575,-741.07,0.00024211,2]
[313788001,1707724283586,-702.48,0.00024211,2]
[313788002,1707724283596,-500.0,0.00024211,2]
[313788003,1707724283606,-1093.1,0.00024211,2]
[313788004,1707724283616,-500.0,0.00024211,2]
[313788005,1707724283626,-1102.3,0.00024211,2]
[313788006,1707724283636,-500.0,0.00024211,2]
[313788007,1707724283645,-500.0,0.00024211,2]
[313788008,1707724283655,-500.0,0.00024211,2]
[313788009,1707724283664,-1010.79,0.00024211,2]
[313788010,1707724283674,-500.0,0.00024211,2]
[313788011,1707724283683,-500.0,0.00024211,2]
[313788012,1707724283692,-500.0,0.00024211,2]
[313788013,1707724283701,-1081.23,0.00024211,2]
[313788014,1707724283710,-500.0,0.00024211,2]
[313788015,1707724283719,-500.0,0.00024211,2]
[313788016,1707724283730,-858.73,0.00024211,2]
[313788017,1707724283740,-1022.22,0.00024211,2]
[313788018,1707724283749,-500.0,0.00024211,2]
[313788019,1707724283759,-968.51,0.00024211,2]
[313788020,1707724283768,-500.0,0.00024211,2]
[313788021,1707724283777,-1029.72,0.00024211,2]
[313788022,1707724283787,-905.03,0.00024211,2]
[313788023,1707724283797,-500.0,0.00024211,2]
[313788024,1707724283806,-500.0,0.00024211,2]
[313788025,1707724283815,-500.0,0.00024211,2]
[313788026,1707724283825,-500.0,0.00024211,2]
[313788027,1707724283834,-565.78,0.00024211,2]
[313788028,1707724283844,-758.66,0.00024211,2]
[313788029,1707724283854,-500.0,0.00024211,2]
[313788030,1707724283863,-500.0,0.00024211,2]
[313788031,1707724283872,-500.0,0.00024211,2]
[313788032,1707724283881,-985.25,0.00024211,2]
[313788033,1707724283890,-637.04,0.00024211,2]
[313788034,1707724283899,-1101.79,0.00024211,2]
[313788035,1707724283908,-500.0,0.00024211,2]
[313788036,1707724283918,-564.71,0.00024211,2]
[313788037,1707724283927,-501.05,0.00024211,2]
[313788038,1707724283936,-500.0,0.00024211,2]
[313788039,1707724283946,-500.0,0.00024211,2]
[313788040,1707724283955,-255.33782244,0.00024211,2]
[313788041,1707724283964,-500.0,0.00024211,2]
[313788042,1707724283975,-500.0,0.00024211,2]
[313788043,1707724283985,-500.0,0.00024211,2]
[313788044,1707724283994,-1934.66,0.00024211,2]
[313788045,1707724284003,-500.0,0.00024211,2]
[313788046,1707724284013,-500.0,0.00024211,2]
[313788047,1707724284022,-500.0,0.00024211,2]
[313788048,1707724284032,-740.57,0.00024211,2]
[313788049,1707724284041,-500.0,0.00024211,2]
[313788050,1707724284050,-644.41,0.00024211,2]
[313788051,1707724284059,-500.0,0.00024211,2]
[313788052,1707724284069,-970.49,0.00024211,2]
[313788053,1707724284078,-500.0,0.00024211,2]
[313788054,1707724284088,-500.0,0.00024211,2]
[313788055,1707724284097,-500.0,0.00024211,2]
[313788056,1707724284106,-500.0,0.00024211,2]
[313788057,1707724284116,-500.0,0.00024211,2]
[313788058,1707724284125,-500.0,0.00024211,2]
[313788059,1707724284134,-956.03,0.00024211,2]
[313788060,1707724284144,-500.0,0.00024211,2]
[313788061,1707724284154,-500.0,0.00024211,2]
[313788062,1707724284164,-500.0,0.00024211,2]
[313788063,1707724284173,-2083.73,0.00024211,2]
[313788064,1707724284183,-500.0,0.00024211,2]
[313788065,1707724284192,-500.0,0.00024211,2]
[313788066,1707724284201,-575.742119,0.00024211,2]
[313788067,1707724284211,-500.0,0.00024211,2]
[313788068,1707724284220,-913.37,0.00024211,2]
[313788069,1707724284231,-500.0,0.00024211,2]
[313788070,1707724284240,-500.0,0.00024211,2]
[313788071,1707724284250,-576.68,0.00024211,2]
[313788072,1707724284259,-537.8,0.00024211,2]
[313788073,1707724284268,-500.0,0.00024211,2]
[313788074,1707724284278,-529.68,0.00024211,2]
[313788075,1707724284287,-779.11,0.00024211,2]
[313788076,1707724284296,-984.19,0.00024211,2]
[313788077,1707724284306,-500.0,0.00024211,2]
[313788078,1707724284316,-500.0,0.00024211,2]
[313788079,1707724284326,-500.0,0.00024211,2]
[313788080,1707724284336,-514.18,0.00024211,2]
[313788081,1707724284345,-500.0,0.00024211,2]
[313788082,1707724284355,-500.0,0.00024211,2]
[313788083,1707724284365,-1281.17,0.00024211,2]
[313788084,1707724284375,-500.0,0.00024211,2]
[313788085,1707724284385,-500.0,0.00024211,2]
[313788086,1707724284395,-518.38,0.00024211,2]
[313788087,1707724284405,-500.0,0.00024211,2]
[313788088,1707724284415,-500.0,0.00024211,2]
[313788089,1707724284429,-500.0,0.00024211,2]
[313788090,1707724284438,-500.0,0.00024211,2]
[313788091,1707724284448,-1010.51,0.00024211,2]
[313788092,1707724284457,-617.28,0.00024211,2]
[313788093,1707724284469,-523.04,0.00024211,2]
[313788094,1707724284479,-500.0,0.00024211,2]
[313788095,1707724284490,-1143.13,0.00024211,2]
[313788096,1707724284499,-500.0,0.00024211,2]
[313788097,1707724284510,-531.64,0.00024211,2]
[313788098,1707724284522,-538.42,0.00024211,2]
[313788099,1707724284533,-500.0,0.00024211,2]
[313788100,1707724284542,-541.44,0.00024211,2]
[313788101,1707724284552,-1417.01,0.00024211,2]
[313788102,1707724284562,-630.75,0.00024211,2]
[313788103,1707724284571,-500.0,0.00024211,2]
[313788104,1707724284582,-611.91,0.00024211,2]
[313788105,1707724284592,-500.0,0.00024211,2]
[313788106,1707724284602,-500.0,0.00024211,2]
[313788107,1707724284613,-737.84,0.00024211,2]
[313788108,1707724284623,-509.88,0.00024211,2]
[313788109,1707724284633,-500.0,0.00024211,2]
[313788110,1707724284642,-500.0,0.00024211,2]
[313788111,1707724284652,-500.0,0.00024211,2]
[313788112,1707724284662,-787.74,0.00024211,2]
[313788113,1707724284672,-625.95,0.00024211,2]
[313788114,1707724284682,-500.0,0.00024211,2]
[313788115,1707724284691,-500.0,0.00024211,2]
[313788116,1707724284701,-531.17,0.00024211,2]
[313788117,1707724284710,-500.0,0.00024211,2]
[313788118,1707724284720,-567.65,0.00024211,2]
[313788119,1707724284730,-500.0,0.00024211,2]
[313788120,1707724284740,-850.14,0.00024211,2]
[313788121,1707724284749,-500.0,0.00024212,2]
[313788122,1707724284758,-500.0,0.00024212,2]
[313788123,1707724284768,-834.63,0.00024212,2]
[313788124,1707724284777,-500.0,0.00024212,2]
[313788125,1707724284786,-538.57,0.00024212,2]
[313788126,1707724284796,-561.22,0.00024212,2]
[313788127,1707724284805,-923.84,0.00024212,2]
[313788128,1707724284814,-870.36,0.00024212,2]
[313788129,1707724284823,-500.0,0.00024212,2]
[313788130,1707724284832,-500.0,0.00024212,2]
[313788131,1707724284841,-500.0,0.00024212,2]
[313788132,1707724284850,-500.0,0.00024212,2]
[313788133,1707724284859,-723.82,0.00024212,2]
[313788134,1707724284868,-500.0,0.00024212,2]
[313788135,1707724284878,-152.0,0.00024255,4]
[313788136,1707724284886,-171.22,0.00024266,2]
[313788137,1707724284895,-603.28,0.00024308,2]
[313788138,1707724284905,-4876.32645959,0.0002431,2]
[313788139,1707724284915,-300.0,0.00024347,2]
[313788140,1707724284924,-500.0,0.00024357,2]
[313788141,1707724284934,-574.16,0.00024357,2]
[313788142,1707724284943,-566.59316306,0.00024357,2]
[313788143,1707724284952,-500.0,0.00024357,2]
[313788144,1707724284961,-500.0,0.00024357,2]
[313788145,1707724284972,-500.0,0.00024357,2]
[313788146,1707724284982,-567.92,0.00024357,2]
[313788147,1707724284992,-500.0,0.00024357,2]
[313788148,1707724285001,-732.18,0.00024357,2]
[313788149,1707724285010,-500.0,0.00024357,2]
[313788150,1707724285020,-500.0,0.00024357,2]
[313788151,1707724285029,-500.0,0.00024357,2]
[313788152,1707724285039,-500.0,0.00024357,2]
[313788153,1707724285048,-540.94,0.00024357,2]
[313788154,1707724285058,-500.0,0.00024357,2]
[313788155,1707724285067,-612.65,0.00024357,2]
[313788156,1707724285076,-500.0,0.00024357,2]
[313788157,1707724285086,-403.04113886,0.00024357,2]
[313788158,1707724285095,-495.9,0.00024379,2]
[313788159,1707724285104,-8676.93,0.00024384,2]
[313788160,1707724285113,-1180.52,0.00024479,2]
[313788161,1707724285122,-1896.25,0.00024479,2]
[313788162,1707724285132,-847.31,0.00024479,2]
[313788163,1707724285141,-500.0,0.00024479,2]
[313788164,1707724285150,-534.72,0.00024479,2]
[313788165,1707724285160,-500.0,0.00024479,2]
[313788166,1707724285170,-1982.34,0.0002448,2]
[313788167,1707724285180,-454.93720462,0.0002448,2]
[313788168,1707724285189,-500.0,0.0002448,2]
[313788169,1707724285199,-2165.45,0.0002448,2]
[313788170,1707724285209,-500.0,0.0002448,2]
[313788171,1707724285218,-621.75,0.0002448,2]
[313788172,1707724285230,-3012.86,0.0002448,2]
[313788173,1707724285241,-2263.16,0.0002448,2]
[313788174,1707724285251,-797.7,0.0002448,2]
[313788175,1707724285261,-500.0,0.0002448,2]
[313788176,1707724285270,-698.6,0.0002448,2]
[313788177,1707724285280,-500.0,0.0002448,2]
[313788178,1707724285290,-500.0,0.0002448,2]
[313788179,1707724285300,-12125.24,0.0002448,2]
[313788180,1707724285310,-1922.52,0.0002448,2]
[313788181,1707724285319,-500.0,0.0002448,2]
[313788182,1707724285328,-500.0,0.0002448,2]
[313788183,1707724285338,-2475.59,0.0002448,2]
[313788184,1707724285348,-500.0,0.0002448,2]
[313788185,1707724285358,-500.0,0.0002448,2]
[313788186,1707724285367,-500.0,0.0002448,2]
[313788187,1707724285377,-500.0,0.0002448,2]
[313788188,1707724285386,-500.0,0.0002448,2]
[313788189,1707724285397,-1975.23,0.0002448,2]
[313788190,1707724285406,-500.0,0.0002448,2]
[313788191,1707724285415,-617.92,0.00024482,2]
[313788192,1707724285429,-500.0,0.00024482,2]
[313788193,1707724285438,-552.62914088,0.00024482,2]
[313788194,1707724285448,-702.45,0.00024482,2]
[313788195,1707724285458,-500.0,0.00024482,2]
[313788196,1707724285469,-500.0,0.00024482,2]
[313788197,1707724285478,-500.0,0.00024482,2]
[313788198,1707724285488,-500.0,0.00024482,2]
[313788199,1707724285498,-500.0,0.00024482,2]
[313788200,1707724285507,-500.0,0.00024482,2]
[313788201,1707724285517,-3082.76,0.00024482,2]
[313788202,1707724285527,-595.48,0.00024482,2]
[313788203,1707724285537,-491.92620432,0.00024482,2]
[313788204,1707724285547,-1116.74,0.00024482,2]
[313788205,1707724285556,-500.0,0.00024482,2]
[313788206,1707724285567,-500.0,0.00024482,2]
[313788207,1707724285576,-580.47,0.00024482,2]
[313788208,1707724285587,-5464.12,0.00024482,2]
[313788209,1707724285597,-500.0,0.00024482,2]
[313788210,1707724285607,-500.0,0.00024482,2]
[313788211,1707724285617,-500.0,0.00024482,2]
[313788212,1707724285627,-500.0,0.00024482,2]
[313788213,1707724285636,-5570.51,0.00024482,2]
[313788214,1707724285646,-1834.77,0.00024482,2]
[313788215,1707724285655,-580.52,0.00024482,2]
[313788216,1707724285665,-20177.86,0.00024482,2]
[313788217,1707724285676,-500.0,0.00024482,2]
[313788218,1707724285685,-500.0,0.00024482,2]
[313788219,1707724285696,-500.0,0.00024482,2]
[313788220,1707724285706,-500.0,0.00024482,2]
[313788221,1707724285716,-1991.86,0.00024482,2]
[313788222,1707724285726,-500.0,0.00024482,2]
[313788223,1707724285736,-630.66,0.00024482,2]
[313788224,1707724285745,-511.3,0.00024482,2]
[313788225,1707724285755,-500.0,0.00024482,2]
[313788226,1707724285765,-410.4895361,0.00024482,2]
[313788227,1707724285774,-500.0,0.00024482,2]
[313788228,1707724285783,-500.0,0.00024482,2]
[313788229,1707724285793,-6710.69,0.00024482,2]
[313788230,1707724285802,-500.0,0.00024482,2]
[313788231,1707724285811,-500.0,0.00024482,2]
[313788232,1707724285821,-823.26,0.00024482,2]
[313788233,1707724285830,-500.0,0.00024482,2]
[313788234,1707724285839,-587.44,0.00024482,2]
[313788235,1707724285849,-500.0,0.00024482,2]
[313788236,1707724285858,-500.0,0.00024482,2]
[313788237,1707724285868,-500.0,0.00024482,2]
[313788238,1707724285877,-500.0,0.00024482,2]
[313788239,1707724285886,-828.24,0.00024482,2]
[313788240,1707724285896,-500.0,0.00024482,2]
[313788241,1707724285906,-1721.35,0.00024482,2]
[313788242,1707724285916,-500.0,0.00024482,2]
[313788243,1707724285925,-3534.38,0.00024482,2]
[313788244,1707724285934,-500.0,0.00024482,2]
[313788245,1707724285944,-500.0,0.00024482,2]
[313788246,1707724285952,-500.0,0.00024482,2]
[313788247,1707724285961,-2375.35,0.00024482,2]
[313788248,1707724285970,-500.0,0.00024482,2]
[313788249,1707724285980,-500.0,0.00024482,2]
[313788250,1707724285989,-1540.99,0.00024482,2]
[313788251,1707724285999,-500.0,0.00024482,2]
[313788252,1707724286008,-500.0,0.00024482,2]
[313788253,1707724286017,-500.0,0.00024482,2]
[313788254,1707724286026,-500.0,0.00024482,2]
[313788255,1707724286035,-1022.74,0.00024482,2]
[313788256,1707724286045,-500.0,0.00024482,2]
[313788257,1707724286055,-500.0,0.00024482,2]
[313788258,1707724286065,-500.0,0.00024482,2]
[313788259,1707724286074,-500.0,0.00024482,2]
[313788260,1707724286084,-500.0,0.00024482,2]
[313788261,1707724286093,-500.0,0.00024482,2]
[313788262,1707724286103,-1895.77,0.00024482,2]
[313788263,1707724286112,-620.86,0.00024482,2]
[313788264,1707724286121,-500.0,0.00024482,2]
[313788265,1707724286130,-1807.44,0.00024482,2]
[313788266,1707724286139,-921.33,0.00024482,2]
[313788267,1707724286148,-2338.23,0.00024482,2]
[313788268,1707724286158,-3233.45,0.00024482,2]
[313788269,1707724286167,-4525.21,0.00024482,2]
[313788270,1707724286176,-3688.06,0.00024482,2]
[313788271,1707724286186,-3591.61,0.00024482,2]
[313788272,1707724286196,-624.13,0.00024482,2]
[313788273,1707724286205,-1805.38,0.00024482,2]
[313788274,1707724286214,-591.5,0.00024482,2]
[313788275,1707724286224,-1201.85,0.00024482,2]
[313788276,1707724286234,-1176.56,0.00024482,2]
[313788277,1707724286243,-4608.4,0.00024482,2]
[313788278,1707724286252,-706.15,0.00024483,2]
[313788279,1707724286262,-769.24,0.00024483,2]
[313788280,1707724286271,-669.16,0.00024483,2]
[313788281,1707724286280,-537.83,0.00024483,2]
[313788282,1707724286290,-500.0,0.00024483,2]
[313788283,1707724286299,-565.89,0.00024483,2]
[313788284,1707724286308,-793.91,0.00024483,2]
[313788285,1707724286318,-624.91,0.00024483,2]
[313788286,1707724286327,-1052.88,0.00024483,2]
[313788287,1707724286336,-687.92,0.00024483,2]
[313788288,1707724286345,-500.0,0.00024483,2]
[313788289,1707724286355,-890.74,0.00024483,2]
[313788290,1707724286365,-815.41,0.00024483,2]
[313788291,1707724286375,-583.58,0.00024483,2]
[313788292,1707724286384,-500.0,0.00024483,2]
[313788293,1707724286393,-937.88,0.00024483,2]
[313788294,1707724286403,-677.31,0.00024483,2]
[313788295,1707724286413,-713.39,0.00024483,2]
[313788296,1707724286423,-500.0,0.00024483,2]
[313788297,1707724286433,-719.29,0.00024483,2]
[313788298,1707724286444,-1300.69,0.00024483,2]
[313788299,1707724286453,-1183.66,0.00024483,2]
[313788300,1707724286463,-587.65,0.00024483,2]
[313788301,1707724286472,-888.66,0.00024483,2]
[313788302,1707724286483,-887.34,0.00024483,2]
[313788303,1707724286492,-1482.85,0.00024483,2]
[313788304,1707724286502,-672.72,0.00024483,2]
[313788305,1707724286511,-507.87,0.00024483,2]
[313788306,1707724286524,-783.44,0.00024483,2]
[313788307,1707724286533,-504.77,0.00024483,2]
[313788308,1707724286542,-500.0,0.00024483,2]
[313788309,1707724286552,-751.88,0.00024483,2]
[313788310,1707724286561,-500.0,0.00024483,2]
[313788311,1707724286571,-500.0,0.00024483,2]
[313788312,1707724286755,-500.0,0.00024483,2]
[313788313,1707724286786,-1243.18,0.00024483,2]
[313788314,1707724286795,-425.94768969,0.00024483,2]
[313788315,1707724286805,-974.3,0.00024483,2]
[313788316,1707724286814,-500.0,0.00024483,2]
[313788317,1707724286823,-7827.18,0.00024483,2]
[313788318,1707724286833,-500.0,0.00024483,2]
[313788319,1707724286841,-500.0,0.00024483,2]
[313788320,1707724286851,-967.31,0.00024483,2]
[313788321,1707724286860,-2173.97,0.00024483,2]
[313788322,1707724286869,-500.0,0.00024483,2]
[313788323,1707724286879,-1551.42,0.00024483,2]
[313788324,1707724286888,-1390.31,0.00024483,2]
[313788325,1707724286898,-537.36,0.00024483,2]
[313788326,1707724286907,-500.0,0.00024483,2]
[313788327,1707724286917,-2945.14,0.00024483,2]
[313788328,1707724286927,-974.61,0.00024483,2]
[313788329,1707724286936,-500.0,0.00024483,2]
[313788330,1707724286945,-806.3,0.00024483,2]
[313788331,1707724286954,-1019.27,0.00024483,2]
[313788332,1707724286964,-570.23,0.00024483,2]
[313788333,1707724286973,-500.0,0.00024483,2]
[313788334,1707724286983,-922.68,0.00024483,2]
[313788335,1707724286992,-587.74,0.00024483,2]
[313788336,1707724287001,-1002.52,0.00024483,2]
[313788337,1707724287010,-1154.55,0.00024483,2]
[313788338,1707724287019,-1257.42,0.00024483,2]
[313788339,1707724287028,-880.38,0.00024483,2]
[313788340,1707724287037,-719.41,0.00024483,2]
[313788341,1707724287047,-744.24,0.00024483,2]
[313788342,1707724287056,-500.0,0.00024483,2]
[313788343,1707724287065,-506.58,0.00024483,2]
[313788344,1707724287075,-655.13,0.00024483,2]
[313788345,1707724287084,-1365.54,0.00024483,2]
[313788346,1707724287094,-500.0,0.00024483,2]
[313788347,1707724287103,-1350.62,0.00024483,2]
[313788348,1707724287112,-772.77,0.00024483,2]